bitfinex-derivatives/quotes_SOLF0:USTF0_20250207
["timestamp","ask_amount","ask_price","bid_price","bid_amount"]
[1738896591789,5.17975444,194.5,194.47,0.03669807]
[1738896591983,0.03845444,194.5,194.47,0.03669807]
[1738896592487,0.03845444,194.5,194.48,5.1416]
[1738896592682,0.03845444,194.5,194.47,0.03669807]
[1738896593991,0.03845444,194.5,194.47,5.17839807]
[1738896596395,0.03845444,194.5,194.49,5.1413]
[1738896606009,0.03845444,194.5,194.47,0.03669807]
[1738896606591,5.444e-05,194.5,194.49,14.27487419]
[1738896606799,1.5688,194.63,194.49,14.27487419]
[1738896606997,1.5179,194.64,194.52,14.27487419]
[1738896607399,5.1379,194.63,194.52,14.27487419]
[1738896607903,0.03263414,194.59,194.56,0.03521375]
[1738896609003,0.03263414,194.59,194.56,5.17461375]
[1738896613499,0.03263414,194.59,194.56,0.03521375]
[1738896614306,0.03263414,194.59,194.56,5.17471375]
[1738896614504,0.03263414,194.59,194.56,0.03521375]
[1738896616604,9.13087586,194.58,194.56,0.03521375]
[1738896616904,5.1392,194.57,194.5,6.7082]
[1738896617105,9.13087586,194.54,194.47,9.13087586]
[1738896617807,9.13087586,194.52,194.46,5.1419]
[1738896618302,5.17994229,194.51,194.47,0.03251028]
[1738896618506,9.13087586,194.5,194.47,0.03251028]
[1738896618709,0.03904229,194.51,194.47,0.03251028]
[1738896618916,5.1412,194.5,194.47,0.03251028]
[1738896620207,5.1414,194.49,194.47,0.03251028]
[1738896620607,14.27971138,194.5,194.47,0.03251028]
[1738896621006,5.1413,194.49,194.47,0.03251028]
[1738896621206,0.03904229,194.51,194.47,0.03251028]
[1738896622512,5.17984229,194.51,194.47,0.03251028]
[1738896623007,0.03904229,194.51,194.47,0.03251028]
[1738896623205,14.31875367,194.51,194.47,0.03251028]
[1738896623410,14.31875367,194.51,194.39,14.27971138]
[1738896623607,5.1419,194.47,194.42,5.1432]
[1738896624311,5.1419,194.47,194.39,14.27971138]
[1738896624704,5.1419,194.47,194.41,0.03701744]
[1738896624705,0.03590911,194.45,194.41,0.03701744]
[1738896624911,0.03590911,194.45,194.44,5.1427]
[1738896628208,0.03590911,194.45,194.42,5.143]
[1738896628414,0.03590911,194.45,194.41,0.03701744]
[1738896629116,0.03590911,194.45,194.41,5.18051744]
[1738896629307,0.03590911,194.45,194.41,0.03701744]
[1738896631408,0.03590911,194.45,194.44,5.1427]
[1738896633813,1.5046,194.53,194.48,5.1414]
[1738896634417,6.645,194.53,194.48,5.1414]
[1738896635217,0.03672532,194.52,194.5,5.141]
[1738896635416,0.03672532,194.52,194.49,0.03608482]
[1738896635921,0.03672532,194.52,194.5,5.1411]
[1738896636919,0.03672532,194.52,194.49,0.03608482]
[1738896643131,14.27971138,194.67,194.5,14.27971138]
[1738896643323,5.1371,194.66,194.53,14.27971138]
[1738896643528,1.5372,194.68,194.56,14.27971138]
[1738896643738,1.5372,194.68,194.61,5.1382]
[1738896643936,1.5372,194.68,194.56,14.27971138]
[1738896644333,0.03827784,194.64,194.6,0.0386415]
[1738896646033,14.31798922,194.64,194.5,207.27971138]
[1738896646229,14.27971138,194.64,194.5,14.27971138]
[1738896646430,21.34976331,194.69,194.6,14.27971138]
[1738896646939,1.6164,194.73,194.67,5.1364]
[1738896647235,0.03955633,194.72,194.68,0.03944661]
[1738896648538,35.62947469,194.85,194.69,14.27971138]
[1738896648835,3.1119,194.84,194.69,14.27971138]
[1738896649036,3.1119,194.84,194.72,14.27971138]
[1738896649337,14.27971138,194.73,194.5,14.27971138]
[1738896649534,14.27971138,194.65,194.52,1.5148]
[1738896649733,5.17239841,194.63,194.6,0.03514223]
[1738896650034,5.17239841,194.63,194.52,1.5148]
[1738896650035,14.27971138,194.62,194.52,5.1404]
[1738896650232,15.80021138,194.62,194.51,28.30732899]
[1738896650434,14.27971138,194.59,194.51,28.30732899]
[1738896650631,1.5914,194.64,194.53,14.27971138]
[1738896651137,0.03868331,194.6,194.57,0.03620105]
[1738896651336,1.5205,194.67,194.57,0.03620105]
[1738896651534,0.03709772,194.6,194.57,0.03620105]
[1738896651737,1.5205,194.67,194.59,5.1386]
[1738896652133,0.03642708,194.65,194.61,0.03517792]
[1738896656538,0.03642708,194.65,194.61,5.17327792]
[1738896657041,0.03642708,194.65,194.61,0.03517792]
[1738896657243,0.03642708,194.65,194.63,5.1376]
[1738896657844,0.03642708,194.65,194.61,0.03517792]
[1738896661245,0.03642708,194.65,194.62,5.1379]
[1738896661438,0.03642708,194.65,194.61,0.03517792]
[1738896662450,0.03642708,194.65,194.61,5.17307792]
[1738896663445,0.03642708,194.65,194.61,0.03517792]
[1738896664350,0.03642708,194.65,194.64,5.1374]
[1738896666846,1.5928,194.75,194.61,22.84268381]
[1738896667041,1.5928,194.75,194.62,1.5455]
[1738896667241,5.1337,194.78,194.71,5.1355]
[1738896667848,0.0381163,194.76,194.72,0.03497994]
[1738896668044,0.0381163,194.76,194.73,5.135]
[1738896668349,0.0381163,194.76,194.72,0.03497994]
[1738896670555,5.1345,194.75,194.72,0.03497994]
[1738896671142,5.1345,194.75,194.63,1.6061]
[1738896671143,0.0381163,194.76,194.63,6.7436]
[1738896671447,24.39650589,194.77,194.63,1.6061]
[1738896672145,24.39650589,194.77,194.69,5.136]
[1738896672346,0.03418816,194.72,194.69,5.136]
[1738896673244,0.03418816,194.72,194.7,5.1357]
[1738896674155,0.03418816,194.72,194.68,0.03296838]
[1738896675254,0.03418816,194.72,194.7,5.1357]
[1738896675456,0.03418816,194.72,194.68,0.03296838]
[1738896675646,0.03418816,194.72,194.7,5.1357]
[1738896677259,1.6098,194.81,194.76,5.1341]
[1738896677457,1.6098,194.81,194.7,14.24299734]
[1738896677953,14.24299734,194.84,194.76,5.1341]
[1738896678159,14.24299734,194.84,194.73,14.24299734]
[1738896678348,0.03671246,194.82,194.78,0.03822641]
[1738896681055,0.03671246,194.82,194.79,5.1334]
[1738896681654,0.03671246,194.82,194.78,0.03822641]
[1738896681856,0.03671246,194.82,194.8,5.1331]
[1738896682766,0.03671246,194.82,194.78,14.28122375]
[1738896682957,0.03671246,194.82,194.81,5.1329]
[1738896683358,15.86299734,194.93,194.85,5.1317]
[1738896684163,15.86299734,194.93,194.81,5.1327]
[1738896684466,14.24299734,194.9,194.81,5.1327]
[1738896684767,5.1316,194.86,194.85,0.03615912]
[1738896684959,14.24299734,194.87,194.79,5.1334]
[1738896685565,5.1321,194.84,194.79,5.1334]
[1738896685762,5.1321,194.84,194.75,5.1343]
[1738896685763,14.24299734,194.84,194.75,5.1343]
[1738896685966,1.5549,194.83,194.75,5.1343]
[1738896686171,0.03449896,194.81,194.78,0.03678971]
[1738896687363,0.03449896,194.81,194.8,5.1332]
[1738896687763,9.896e-05,194.81,194.8,5.1332]
[1738896689164,3.156,194.95,194.78,22.81447139]
[1738896689165,1.6055,194.95,194.78,22.81447139]
[1738896689361,1.6055,194.95,194.83,22.77768168]
[1738896690465,0.03312741,194.91,194.87,0.03950242]
[1738896690874,0.03312741,194.91,194.87,5.17060242]
[1738896691263,0.03312741,194.91,194.87,0.03950242]
[1738896691463,0.03312741,194.91,194.89,5.1308]
[1738896693258,0.03312741,194.91,194.9,5.1305]
[1738896693467,2.46556582,195.02,194.87,22.8171841]
[1738896693668,1.5228,195.02,194.87,22.8171841]
[1738896693968,1.5228,195.02,194.87,22.77768168]
[1738896694665,0.03429061,194.96,194.93,0.03369173]
[1738896696865,0.03429061,194.96,194.93,5.16339173]
[1738896697173,0.03429061,194.96,194.93,0.03369173]
[1738896697373,5.1295,194.94,194.93,0.03369173]
[1738896698266,5.1305,194.91,194.85,5.1317]
[1738896698868,5.1308,194.9,194.83,5.1323]
[1738896699166,3.9,194.93,194.79,3.2312]
[1738896699366,1.5923,194.92,194.79,3.2312]
[1738896699568,5.16523811,194.88,194.85,0.03931893]
[1738896699763,0.03403811,194.88,194.85,0.03931893]
[1738896700172,5.1316,194.87,194.85,0.03931893]
[1738896700773,0.03403811,194.88,194.85,0.03931893]
[1738896700971,5.1316,194.86,194.85,0.03931893]
[1738896701576,5.1324,194.83,194.77,5.1337]
[1738896702366,1.5314,194.87,194.75,1.657]
[1738896702569,24.30908168,194.87,194.75,1.657]
[1738896702872,0.03531754,194.83,194.79,0.03610623]
[1738896704473,0.03531754,194.83,194.79,22.81378791]
[1738896704673,5.1304,194.91,194.85,5.1318]
[1738896704876,1.5923,194.92,194.79,22.81378791]
[1738896705077,1.5923,194.92,194.79,22.77768168]
[1738896705278,1.5923,194.92,194.8,1.6668]
[1738896705882,0.03435001,194.88,194.84,0.03740786]
[1738896706074,0.03435001,194.88,194.84,5.16930786]
[1738896706274,0.03435001,194.88,194.84,0.03740786]
[1738896707877,5.16565001,194.88,194.84,0.03740786]
[1738896708274,0.03435001,194.88,194.84,0.03740786]
[1738896708479,0.03435001,194.88,194.84,5.16920786]
[1738896708680,0.03435001,194.88,194.84,0.03740786]
[1738896710784,5.1313,194.87,194.84,0.03740786]
[1738896710979,0.03435001,194.88,194.84,0.03740786]
[1738896711387,22.81203169,194.88,194.75,6.7912]
[1738896711582,22.77768168,194.88,194.75,5.1342]
[1738896711888,5.1321,194.85,194.75,5.1342]
[1738896712078,1.5486,194.84,194.71,29.91478298]
[1738896712280,24.32628168,194.84,194.73,5.1348]
[1738896712578,5.1335,194.79,194.77,0.03497424]
[1738896713399,5.16801231,194.8,194.77,0.03497424]
[1738896717095,5.1337,194.78,194.77,0.03497424]
[1738896720202,5.1351,194.73,194.67,5.1366]
[1738896720504,22.77768168,194.8,194.63,51.08501067]
[1738896720802,22.77768168,194.8,194.63,22.77768168]
[1738896721001,1.5955,194.83,194.62,8.7564013]
[1738896721002,22.77768168,194.76,194.62,8.7564013]
[1738896721206,5.1351,194.73,194.62,8.7564013]
[1738896721397,0.03643418,194.71,194.67,0.03681489]
[1738896721603,5.1361,194.69,194.67,0.03681489]
[1738896723806,5.1367,194.67,194.56,3.2131]
[1738896724297,22.77768168,194.72,194.6,5.1384]
[1738896724695,5.1362,194.69,194.6,5.1384]
[1738896724903,22.77768168,194.72,194.64,0.03612677]
[1738896725102,0.03433746,194.68,194.64,0.03612677]
[1738896725900,5.1371,194.66,194.64,0.03612677]
[1738896726107,0.03433746,194.68,194.53,29.95092899]
[1738896726507,22.77768168,194.69,194.56,5.1395]
[1738896727005,5.1377,194.63,194.56,5.1395]
[1738896727208,0.03769446,194.64,194.61,0.03541453]
[1738896727507,3.9,194.65,194.54,5.1398]
[1738896727696,3.9,194.65,194.61,0.03291328]
[1738896727901,0.03617496,194.64,194.61,0.03291328]
[1738896728297,5.1379,194.62,194.51,5.1406]
[1738896728507,1.5902,194.63,194.51,5.1406]
[1738896728901,1.605,194.62,194.51,5.1406]
[1738896729501,5.1392,194.57,194.51,5.1406]
[1738896729705,0.03615647,194.58,194.55,0.03756406]
[1738896729904,5.1395,194.56,194.55,0.03756406]
[1738896731910,5.17535647,194.58,194.55,0.03756406]
[1738896732212,0.03615647,194.58,194.55,0.03756406]
[1738896733305,0.03615647,194.58,194.57,5.1392]
[1738896734513,0.03615647,194.58,194.55,0.03756406]
[1738896735805,0.03615647,194.58,194.57,5.1392]
[1738896736912,0.03615647,194.58,194.55,0.03756406]
[1738896741214,5.1392,194.57,194.55,0.03756406]
[1738896742215,0.03615647,194.58,194.55,0.03756406]
[1738896742412,5.17515647,194.58,194.55,0.03756406]
[1738896744617,0.03615647,194.58,194.55,0.03756406]
[1738896746819,5.17515647,194.58,194.55,0.03756406]
[1738896747228,0.03615647,194.58,194.55,0.03756406]
[1738896747916,0.03615647,194.58,194.57,5.1392]
[1738896749215,0.03615647,194.58,194.55,5.17706406]
[1738896749416,0.03615647,194.58,194.55,0.03756406]
[1738896751229,5.1392,194.57,194.55,0.03756406]
[1738896752319,0.03615647,194.58,194.55,0.03756406]
[1738896752529,0.03615647,194.58,194.48,5.1415]
[1738896752714,3.9,194.57,194.46,1.5745]
[1738896752918,22.82599725,194.56,194.42,1.6675]
[1738896753521,22.82599725,194.56,194.39,3.1226]
[1738896753718,0.03408569,194.51,194.47,0.03476178]
[1738896753924,1.55308569,194.51,194.38,28.30732899]
[1738896754326,5.1421,194.47,194.41,5.1434]
[1738896755229,0.03945863,194.46,194.42,0.0378321]
[1738896756528,0.03945863,194.46,194.44,5.1426]
[1738896758033,0.03945863,194.46,194.42,5.1809321]
[1738896758327,0.03945863,194.46,194.42,0.0378321]
[1738896759325,0.03945863,194.46,194.43,5.1429]
[1738896759528,0.03945863,194.46,194.42,0.0378321]
[1738896759832,5.18165863,194.46,194.42,0.0378321]
[1738896760030,0.03945863,194.46,194.42,0.0378321]
[1738896764122,0.03945863,194.46,194.42,1.6927321]
[1738896764332,0.03945863,194.46,194.45,5.1424]
[1738896767833,0.03945863,194.46,194.42,0.0378321]
[1738896769833,0.03945863,194.46,194.42,5.1809321]
[1738896770033,0.03945863,194.46,194.42,0.0378321]
[1738896771736,0.03945863,194.46,194.43,5.1429]
[1738896774432,0.03945863,194.46,194.42,0.0378321]
[1738896774632,0.03945863,194.46,194.42,5.1810321]
[1738896774833,0.03945863,194.46,194.42,0.0378321]
[1738896775232,5.1426,194.45,194.42,0.0378321]
[1738896777734,14.28386695,194.43,194.3,193.0]
[1738896778028,3.9,194.45,194.28,7.12219833]
[1738896778029,14.28386695,194.4,194.28,7.12219833]
[1738896778232,5.1442,194.39,194.34,5.1453]
[1738896778428,14.28386695,194.4,194.34,5.1453]
[1738896778835,0.0377373,194.39,194.35,0.0328789]
[1738896779237,0.0377373,194.39,194.37,5.1444]
[1738896779934,0.0377373,194.39,194.38,5.1443]
[1738896780433,3.9,194.45,194.36,14.28386695]
[1738896780635,17.44596695,194.49,194.36,14.28386695]
[1738896780636,3.1621,194.49,194.36,3.0415]
[1738896781635,0.03469624,194.44,194.41,0.03604893]
[1738896783942,5.143,194.43,194.41,0.03604893]
[1738896784646,5.17739624,194.44,194.41,0.03604893]
[1738896785241,0.03469624,194.44,194.41,0.03604893]
[1738896786347,0.03469624,194.44,194.43,5.1429]
[1738896790350,0.03469624,194.44,194.41,0.03604893]
[1738896793249,5.1429,194.43,194.41,0.03604893]
[1738896795151,5.1432,194.42,194.41,0.03604893]
[1738896795951,0.03469624,194.44,194.41,0.03604893]
[1738896796152,5.17759624,194.44,194.41,0.03604893]
[1738896797064,0.03469624,194.44,194.41,0.03604893]
[1738896798556,0.03469624,194.44,194.42,5.1432]
[1738896799152,0.03469624,194.44,194.41,0.03604893]
[1738896800345,5.1432,194.42,194.41,0.03604893]
[1738896802450,5.1432,194.42,194.36,5.1448]
[1738896802451,0.03469624,194.44,194.36,5.1448]
[1738896802747,14.32729693,194.44,194.31,1.6391]
[1738896802949,14.29260069,194.44,194.34,5.1453]
[1738896803756,5.1438,194.4,194.37,0.0341952]
[1738896804760,5.1443,194.38,194.37,0.0341952]
[1738896805654,14.32592543,194.41,194.37,0.0341952]
[1738896805861,19.46942543,194.41,194.37,0.0341952]
[1738896806860,0.03332474,194.41,194.37,5.1786952]
[1738896807858,0.03332474,194.41,194.37,0.0341952]
[1738896808160,5.17682474,194.41,194.37,0.0341952]
[1738896810562,5.1437,194.4,194.37,0.0341952]
[1738896814282,0.03332474,194.41,194.37,5.1785952]
[1738896814782,0.03332474,194.41,194.37,0.0341952]
[1738896814977,14.32592543,194.41,194.37,0.0341952]
[1738896815983,19.46962543,194.41,194.37,0.0341952]
[1738896819882,5.1439,194.4,194.37,0.0341952]
[1738896822182,14.32592543,194.41,194.37,0.0341952]
[1738896822382,0.03332474,194.41,194.37,0.0341952]
[1738896823576,14.32592543,194.41,194.37,0.0341952]
[1738896823776,14.29260069,194.38,194.37,0.0341952]
[1738896824286,19.43690069,194.38,194.37,0.0341952]
[1738896824674,14.29260069,194.38,194.26,3.2336]
[1738896825280,15.93110069,194.38,194.26,3.2336]
[1738896825782,0.03440825,194.34,194.3,0.02117919]
[1738896830592,5.17970825,194.34,194.3,0.02117919]
[1738896831388,0.03440825,194.34,194.3,0.02117919]
[1738896831691,5.1461,194.31,194.3,0.02117919]
[1738896832889,14.29260069,194.32,194.23,5.148]
[1738896833090,5.1468,194.29,194.23,5.148]
[1738896834093,0.03271972,194.28,194.23,5.148]
[1738896835893,0.03271972,194.28,194.25,5.1477]
[1738896836093,0.03271972,194.28,194.21,1.517]
[1738896836294,0.03271972,194.28,194.21,15.80960069]
[1738896837094,0.03271972,194.28,194.27,5.1472]
[1738896840194,3.88,194.36,194.21,15.80960069]
[1738896840195,193.0,194.45,194.24,14.29260069]
[1738896840397,1.62,194.43,194.3,14.29260069]
[1738896840998,1.62,194.43,194.33,5.1454]
[1738896841196,1.62,194.43,194.3,14.29260069]
[1738896841397,5.1435,194.42,194.3,14.29260069]
[1738896841695,0.03466657,194.4,194.36,0.03271972]
[1738896844001,5.17836657,194.4,194.36,0.03271972]
[1738896844603,5.144,194.39,194.36,0.03271972]
[1738896848507,5.1443,194.38,194.36,0.03271972]
[1738896849611,0.03466657,194.4,194.36,0.03271972]
[1738896849802,5.1445,194.37,194.36,0.03271972]
[1738896850602,14.2967899,194.37,194.36,0.03271972]
[1738896860211,9.1522899,194.37,194.36,0.03271972]
[1738896860412,0.03466657,194.4,194.36,0.03271972]
[1738896861014,0.03466657,194.4,194.37,5.1443]
[1738896861612,0.03466657,194.4,194.36,0.03271972]
[1738896865419,0.03466657,194.4,194.36,5.17751972]
[1738896869525,14.2967899,194.37,194.36,0.03271972]
[1738896872731,5.1456,194.33,194.25,9.1522899]
[1738896873029,9.1522899,194.31,194.25,9.1522899]
[1738896873936,0.03601838,194.3,194.25,9.1522899]
[1738896874730,0.03601838,194.3,194.27,5.1471]
[1738896881342,0.03601838,194.3,194.28,5.1468]
[1738896881946,0.03601838,194.3,194.25,9.1522899]
[1738896882245,0.03601838,194.3,194.24,1.5195]
[1738896882246,0.03601838,194.3,194.29,5.1466]
[1738896883945,0.03601838,194.3,194.27,5.1469]
[1738896884143,0.03601838,194.3,194.25,9.1522899]
[1738896885848,0.03601838,194.3,194.28,5.1469]
[1738896888147,0.03601838,194.3,194.29,5.1466]
[1738896898855,0.03601838,194.3,194.23,9.1522899]
[1738896899248,9.1522899,194.29,194.23,9.1522899]
[1738896900250,9.1522899,194.29,194.23,5.148]
[1738896900560,14.2995899,194.27,194.22,5.1485]
[1738896904854,9.1522899,194.27,194.23,5.148]
[1738896905252,9.19010895,194.27,194.23,5.148]
[1738896906352,9.19010895,194.27,194.21,1.517]
[1738896906546,14.33730895,194.27,194.21,6.6656]
[1738896906752,14.33730895,194.27,194.21,1.517]
[1738896907760,14.33730895,194.27,194.22,5.1484]
[1738896907954,9.19010895,194.27,194.22,5.1484]
[1738896910961,14.33740895,194.27,194.22,5.1484]
[1738896911461,9.1522899,194.25,194.22,5.1484]
[1738896917062,0.03781905,194.27,194.24,5.148]
[1738896917266,0.03781905,194.27,194.2,9.1522899]
[1738896917665,9.19010895,194.27,194.23,5.1481]
[1738896917872,9.1522899,194.25,194.18,45.38041457]
[1738896918164,9.1522899,194.23,194.18,36.22812467]
[1738896918571,0.03591817,194.22,194.21,5.1487]
[1738896921274,0.03591817,194.22,194.16,9.1522899]
[1738896921477,0.03591817,194.22,194.15,1.5538]
[1738896922676,0.03591817,194.22,194.19,5.1493]
[1738896922896,9.1522899,194.21,194.19,5.1493]
[1738896924088,9.1522899,194.21,194.13,1.5791]
[1738896924294,9.1522899,194.17,194.1,17.80718823]
[1738896924704,0.03749033,194.15,194.1,17.80718823]
[1738896925407,0.03749033,194.15,194.1,10.6849899]
[1738896925911,0.03749033,194.15,194.14,5.1505]
[1738896927916,0.03749033,194.15,194.1,10.6849899]
[1738896929021,0.03749033,194.15,194.12,5.1509]
[1738896929205,0.03749033,194.15,194.12,9.1522899]
[1738896929408,0.03749033,194.15,194.14,9.1522899]
[1738896929610,0.03749033,194.15,194.14,14.3028899]
[1738896929813,0.03749033,194.15,194.14,5.1506]
[1738896934207,9.1522899,194.23,194.2,5.149]
[1738896934405,9.1522899,194.25,194.16,9.1522899]
[1738896934609,9.1522899,194.25,194.18,9.1522899]
[1738896935511,0.03935761,194.23,194.2,0.0348639]
[1738896936199,0.03935761,194.23,194.22,14.3006899]
[1738896937201,0.03935761,194.23,194.22,5.1484]
[1738896938694,0.03935761,194.23,194.2,0.0348639]
[1738896940183,0.03935761,194.23,194.22,5.1485]
[1738896940682,0.03935761,194.23,194.22,14.3007899]
[1738896952034,10.8021899,194.33,194.22,9.1522899]
[1738896952192,10.8021899,194.33,194.28,5.1467]
[1738896952398,1.6499,194.33,194.27,9.1522899]
[1738896953087,1.6499,194.33,194.3,5.1464]
[1738896953293,0.0327944,194.32,194.3,5.1464]
[1738896954891,0.0327944,194.32,194.31,5.1461]
[1738896955800,0.0327944,194.32,194.28,0.03579806]
[1738896956094,0.0327944,194.32,194.28,5.18269806]
[1738896956293,9.1522899,194.31,194.28,0.03579806]
[1738896957394,14.2983899,194.31,194.28,0.03579806]
[1738896958201,9.1522899,194.31,194.28,0.03579806]
[1738896958694,9.1522899,194.29,194.28,0.03579806]
[1738896960702,9.1522899,194.31,194.28,0.03579806]
[1738896961496,0.0327944,194.32,194.28,0.03579806]
[1738896961901,0.0327944,194.32,194.3,5.1463]
[1738896963298,0.0327944,194.32,194.28,5.18269806]
[1738896963502,0.0327944,194.32,194.28,0.03579806]
[1738896964016,5.1786944,194.32,194.28,0.03579806]
[1738896965706,9.1522899,194.31,194.28,0.03579806]
[1738896966204,9.1522899,194.29,194.28,0.03579806]
[1738896966594,14.2988899,194.29,194.28,0.03579806]
[1738896968807,9.1522899,194.29,194.28,0.03579806]
[1738896971311,14.2983899,194.31,194.28,0.03579806]
[1738896972013,9.1522899,194.31,194.28,0.03579806]
[1738896972222,5.1464,194.3,194.28,0.03579806]
[1738896982136,0.0327944,194.32,194.28,0.03579806]
[1738896983825,5.1786944,194.32,194.28,0.03579806]
[1738896984027,0.0327944,194.32,194.28,0.03579806]
[1738896985024,0.0327944,194.32,194.31,5.1461]
[1738896987330,0.0327944,194.32,194.31,14.2983899]
[1738896999133,0.0327944,194.32,194.31,5.1461]
[1738897001439,0.0327944,194.32,194.31,14.2983899]
[1738897001640,9.1522899,194.41,194.31,9.1522899]
[1738897001829,9.1522899,194.41,194.37,5.1444]
[1738897002031,9.1522899,194.41,194.33,9.1522899]
[1738897002436,9.1522899,194.41,194.24,194.6698]
[1738897002437,9.1522899,194.41,194.37,5.1445]
[1738897002635,9.1522899,194.43,194.37,5.1445]
[1738897002834,0.03348948,194.41,194.37,5.180297]
[1738897003131,0.03348948,194.41,194.37,9.1880869]
[1738897003333,0.03348948,194.41,194.39,5.144]
[1738897004740,0.03348948,194.41,194.37,5.180097]
[1738897004934,9.18577938,194.41,194.37,5.180097]
[1738897006435,0.03348948,194.41,194.37,5.180097]
[1738897006635,0.03348948,194.41,194.37,0.035797]
[1738897006837,0.03348948,194.41,194.38,5.1442]
[1738897007142,0.03348948,194.41,194.37,0.035797]
[1738897007442,0.03348948,194.41,194.37,9.1880869]
[1738897007744,0.03348948,194.41,194.39,5.1438]
[1738897009746,0.03348948,194.41,194.4,5.1437]
[1738897015144,0.03348948,194.41,194.37,0.035797]
[1738897016742,0.03348948,194.41,194.37,5.180097]
[1738897018450,0.03348948,194.41,194.37,9.1880869]
[1738897018648,9.1522899,194.49,194.39,9.1522899]
[1738897018848,9.1522899,194.49,194.43,9.1522899]
[1738897019046,9.1522899,194.49,194.44,5.1426]
[1738897019286,9.1522899,194.49,194.43,9.1522899]
[1738897019853,0.03718693,194.48,194.44,0.03425518]
[1738897020845,0.03718693,194.48,194.45,5.1422]
[1738897022853,0.03718693,194.48,194.44,0.03425518]
[1738897024951,9.1522899,194.45,194.35,9.1522899]
[1738897025159,1.5458,194.52,194.35,9.1522899]
[1738897025160,9.1522899,194.42,194.35,9.1522899]
[1738897025456,14.2954899,194.42,194.36,5.1448]
[1738897026156,0.03457407,194.41,194.37,5.18289985]
[1738897027259,0.03457407,194.41,194.39,9.1522899]
[1738897028750,0.03457407,194.41,194.4,5.1437]
[1738897032200,12.2820899,194.52,194.39,9.1522899]
[1738897032466,12.2820899,194.52,194.46,9.1522899]
[1738897032761,3.1298,194.52,194.46,9.1522899]
[1738897033263,0.03527849,194.51,194.47,0.03633057]
[1738897033855,0.03527849,194.51,194.47,5.17813057]
[1738897034857,0.03527849,194.51,194.48,5.1416]
[1738897040474,0.03527849,194.51,194.47,0.03633057]
[1738897040776,0.03527849,194.51,194.49,5.1413]
[1738897042364,0.03527849,194.51,194.47,0.03633057]
[1738897042567,9.1522899,194.61,194.5,9.1522899]
[1738897042771,9.1522899,194.63,194.53,9.1522899]
[1738897042974,9.1522899,194.63,194.55,9.1522899]
[1738897043271,5.1383,194.61,194.55,9.1522899]
[1738897043477,9.1522899,194.61,194.55,9.1522899]
[1738897043873,0.03648056,194.6,194.56,0.03254139]
[1738897044763,5.17498056,194.6,194.56,0.03254139]
[1738897044966,0.03648056,194.6,194.56,0.03254139]
[1738897045364,0.03648056,194.6,194.56,5.17194139]
[1738897045564,0.03648056,194.6,194.56,0.03254139]
[1738897045973,0.03648056,194.6,194.57,5.1392]
[1738897046174,0.03648056,194.6,194.56,0.03254139]
[1738897046870,9.1522899,194.59,194.56,0.03254139]
[1738897047875,14.2909899,194.59,194.56,0.03254139]
[1738897053071,5.1387,194.59,194.56,0.03254139]
[1738897053278,0.03648056,194.6,194.56,5.17204139]
[1738897054076,0.03648056,194.6,194.56,0.03254139]
[1738897054377,0.03648056,194.6,194.57,5.1392]
[1738897055576,0.03648056,194.6,194.56,0.03254139]
[1738897055769,0.03648056,194.6,194.58,5.1388]
[1738897056479,0.03648056,194.6,194.57,5.1392]
[1738897057174,5.1371,194.66,194.58,9.1522899]
[1738897058281,5.1371,194.65,194.6,5.1384]
[1738897058577,0.03522384,194.64,194.6,0.03476453]
[1738897059781,5.17262384,194.64,194.6,0.03476453]
[1738897061678,0.03522384,194.64,194.6,0.03476453]
[1738897061885,0.03522384,194.64,194.61,5.1381]
[1738897064086,0.03522384,194.64,194.63,5.1376]
[1738897064690,9.1522899,194.71,194.68,5.1361]
[1738897065391,9.1522899,194.71,194.65,9.1522899]
[1738897065789,0.0342291,194.7,194.66,0.03883153]
[1738897066392,0.0342291,194.7,194.67,5.1366]
[1738897066990,0.0342291,194.7,194.66,0.03883153]
[1738897067288,0.0342291,194.7,194.69,5.1361]
[1738897073900,0.0342291,194.7,194.68,5.1363]
[1738897081507,0.0342291,194.7,194.67,9.1522899]
[1738897083001,0.0342291,194.7,194.67,14.2885899]
[1738897084510,0.0342291,194.7,194.68,5.1363]
[1738897086512,0.0342291,194.7,194.67,9.1522899]
[1738897088912,0.0342291,194.7,194.68,5.1362]
[1738897089216,0.0342291,194.7,194.67,9.1522899]
[1738897091315,0.0342291,194.7,194.66,5.17563153]
[1738897091915,0.0342291,194.7,194.66,0.03883153]
[1738897092111,0.0342291,194.7,194.67,5.1366]
[1738897092721,0.0342291,194.7,194.67,14.2888899]
[1738897093118,0.0342291,194.7,194.67,9.1522899]
[1738897093320,0.0342291,194.7,194.66,0.03883153]
[1738897093623,9.1522899,194.67,194.57,9.1522899]